[Event "*** Titled Tuesday Blitz"]
[Site "Chess.com"]
[Date "2018.10.02"]
[Round "4"]
[White "hypert"]
[Black "FMJoseHerrera"]
[Result "0-1"]
[WhiteElo "2345"]
[BlackElo "2506"]
[TimeControl "180+2"]
[EndTime "13:47:06 PDT"]
[Termination "FMJoseHerrera won by checkmate"]

1. Nf3 {[%clk 0:03:01.9]} 1... c5 {[%clk 0:03:00.6]} 2. c4 {[%clk 0:03:00.7]}
2... b6 {[%clk 0:03:00.8]} 3. e3 {[%clk 0:02:59.7]} 3... Bb7 {[%clk 0:03:00]} 4.
d4 {[%clk 0:03:00.7]} 4... e6 {[%clk 0:03:00]} 5. Nc3 {[%clk 0:03:01.1]} 5...
Nf6 {[%clk 0:03:00.2]} 6. Be2 {[%clk 0:03:00.3]} 6... a6 {[%clk 0:03:00]} 7. O-O
{[%clk 0:02:57.3]} 7... Qc7 {[%clk 0:02:58.9]} 8. a4 {[%clk 0:02:52.9]} 8... Be7
{[%clk 0:02:56.9]} 9. d5 {[%clk 0:02:49.8]} 9... O-O {[%clk 0:02:50.3]} 10. e4
{[%clk 0:02:49.4]} 10... exd5 {[%clk 0:02:46.5]} 11. exd5 {[%clk 0:02:48.2]}
11... h6 {[%clk 0:02:40.4]} 12. Re1 {[%clk 0:02:44.3]} 12... Bd6 {[%clk
0:02:41.4]} 13. Bd3 {[%clk 0:02:43]} 13... Bf4 {[%clk 0:02:40.4]} 14. g3 {[%clk
0:02:21.9]} 14... Bxc1 {[%clk 0:02:36.5]} 15. Rxc1 {[%clk 0:02:22.6]} 15... d6
{[%clk 0:02:37.7]} 16. Nh4 {[%clk 0:02:21.2]} 16... Bc8 {[%clk 0:02:33.6]} 17.
f4 {[%clk 0:02:07.4]} 17... Bg4 {[%clk 0:02:32.9]} 18. Qc2 {[%clk 0:01:53.4]}
18... a5 {[%clk 0:02:19.3]} 19. Kg2 {[%clk 0:01:46.9]} 19... Qd7 {[%clk
0:02:11.9]} 20. Nf5 {[%clk 0:01:42.3]} 20... Na6 {[%clk 0:02:10.4]} 21. Ne3
{[%clk 0:01:15.3]} 21... Nb4 {[%clk 0:02:11]} 22. Qd2 {[%clk 0:01:15.2]} 22...
Bh3+ {[%clk 0:02:10.7]} 23. Kg1 {[%clk 0:01:13]} 23... Rae8 {[%clk 0:02:09.1]}
24. Bb1 {[%clk 0:00:54.6]} 24... Re7 {[%clk 0:01:59.4]} 25. Ng2 {[%clk
0:00:42.6]} 25... Rfe8 {[%clk 0:01:58.8]} 26. Rxe7 {[%clk 0:00:37.5]} 26... Rxe7
{[%clk 0:01:59.9]} 27. Re1 {[%clk 0:00:38.8]} 27... Rxe1+ {[%clk 0:01:58.5]} 28.
Qxe1 {[%clk 0:00:38.9]} 28... Bf5 {[%clk 0:01:59.5]} 29. Nb5 {[%clk 0:00:21.9]}
29... Bxb1 {[%clk 0:01:30.9]} 30. Qxb1 {[%clk 0:00:23.8]} 30... Qg4 {[%clk
0:01:32.6]} 31. Qe1 {[%clk 0:00:22.1]} 31... Nd3 {[%clk 0:01:30.4]} 32. Qd2
{[%clk 0:00:22.4]} 32... Qf3 {[%clk 0:01:27.1]} 33. Ne3 {[%clk 0:00:19]} 33...
Nxb2 {[%clk 0:01:23.3]} 34. Nxd6 {[%clk 0:00:20]} 34... Nxa4 {[%clk 0:01:13.2]}
35. Nef5 {[%clk 0:00:20.9]} 35... Nc3 {[%clk 0:01:10.8]} 36. Ne7+ {[%clk
0:00:21.7]} 36... Kh8 {[%clk 0:01:09]} 37. h3 {[%clk 0:00:21.5]} 37... Ne2+
{[%clk 0:01:08.8]} 38. Kh2 {[%clk 0:00:19.9]} 38... Qxg3+ {[%clk 0:01:09.8]} 39.
Kh1 {[%clk 0:00:19.1]} 39... Qg1# {[%clk 0:01:11.7]} 0-1

[Event "*** Titled Tuesday Blitz"]
[Site "Chess.com"]
[Date "2018.10.02"]
[Round "4"]
[White "Thee-Chessboy"]
[Black "evgenysharapov"]
[Result "0-1"]
[WhiteElo "2307"]
[BlackElo "2456"]
[TimeControl "180+2"]
[EndTime "13:47:17 PDT"]
[Termination "evgenysharapov won by resignation"]

1. d4 {[%clk 0:03:01.9]} 1... d5 {[%clk 0:03:00.4]} 2. c4 {[%clk 0:02:53.4]}
2... c6 {[%clk 0:02:59.9]} 3. Nf3 {[%clk 0:02:53.2]} 3... Nf6 {[%clk 0:03:00.2]}
4. Qc2 {[%clk 0:02:52.8]} 4... g6 {[%clk 0:02:59.7]} 5. e3 {[%clk 0:02:52.6]}
5... Bf5 {[%clk 0:02:55.9]} 6. Bd3 {[%clk 0:02:52.8]} 6... Bxd3 {[%clk
0:02:55.8]} 7. Qxd3 {[%clk 0:02:54.7]} 7... Bg7 {[%clk 0:02:56.5]} 8. O-O {[%clk
0:02:54]} 8... e6 {[%clk 0:02:57]} 9. b3 {[%clk 0:02:52.7]} 9... O-O {[%clk
0:02:57.1]} 10. a4 {[%clk 0:02:50.1]} 10... Nbd7 {[%clk 0:02:56.2]} 11. Ba3
{[%clk 0:02:49.7]} 11... Re8 {[%clk 0:02:56.5]} 12. Nc3 {[%clk 0:02:37.1]} 12...
a6 {[%clk 0:02:56.7]} 13. e4 {[%clk 0:02:34.8]} 13... dxe4 {[%clk 0:02:56.1]}
14. Nxe4 {[%clk 0:02:35]} 14... Nxe4 {[%clk 0:02:56.2]} 15. Qxe4 {[%clk
0:02:35.3]} 15... Qb6 {[%clk 0:02:55.8]} 16. Qe3 {[%clk 0:02:27.4]} 16... e5
{[%clk 0:02:48.5]} 17. c5 {[%clk 0:02:13.1]} 17... Qc7 {[%clk 0:02:46.4]} 18.
dxe5 {[%clk 0:01:49.1]} 18... Nxe5 {[%clk 0:02:46.1]} 19. Rae1 {[%clk
0:01:39.9]} 19... Nxf3+ {[%clk 0:02:37.1]} 20. Qxf3 {[%clk 0:01:38.9]} 20... Qd7
{[%clk 0:02:35.7]} 21. Bc1 {[%clk 0:01:32.6]} 21... Rxe1 {[%clk 0:02:26.3]} 22.
Rxe1 {[%clk 0:01:32]} 22... Re8 {[%clk 0:02:26.8]} 23. Rd1 {[%clk 0:01:31.6]}
23... Qe6 {[%clk 0:02:20.1]} 24. g3 {[%clk 0:01:24.6]} 24... h5 {[%clk
0:02:17.1]} 25. Bg5 {[%clk 0:01:09.7]} 25... Bf8 {[%clk 0:02:11.7]} 26. b4
{[%clk 0:00:50.2]} 26... a5 {[%clk 0:02:09.4]} 27. bxa5 {[%clk 0:00:38.5]} 27...
Bxc5 {[%clk 0:02:09.3]} 28. a6 {[%clk 0:00:30.5]} 28... bxa6 {[%clk 0:02:08.1]}
29. Rc1 {[%clk 0:00:30]} 29... Qd6 {[%clk 0:01:15.5]} 30. Bf4 {[%clk 0:00:27.4]}
30... Qd4 {[%clk 0:01:10.8]} 31. Rd1 {[%clk 0:00:21]} 31... Qxa4 {[%clk
0:01:07.2]} 32. Rc1 {[%clk 0:00:19.4]} 32... Qb4 {[%clk 0:00:50.5]} 33. Qxc6
{[%clk 0:00:16.7]} 33... Re1+ {[%clk 0:00:47.9]} 0-1

[Event "*** Titled Tuesday Blitz"]
[Site "Chess.com"]
[Date "2018.10.02"]
[Round "4"]
[White "ftorodent"]
[Black "Gabrielian_Artur"]
[Result "0-1"]
[WhiteElo "2526"]
[BlackElo "2691"]
[TimeControl "180+2"]
[EndTime "13:47:43 PDT"]
[Termination "Gabrielian_Artur won on time"]

1. d4 {[%clk 0:02:59.6]} 1... Nf6 {[%clk 0:03:00.5]} 2. Nf3 {[%clk 0:02:59.7]}
2... e6 {[%clk 0:03:00.2]} 3. c4 {[%clk 0:03:00.4]} 3... c5 {[%clk 0:03:01]} 4.
d5 {[%clk 0:03:01.3]} 4... exd5 {[%clk 0:03:02.1]} 5. cxd5 {[%clk 0:03:02]} 5...
d6 {[%clk 0:03:03.4]} 6. Nc3 {[%clk 0:03:02.8]} 6... g6 {[%clk 0:03:04.3]} 7.
Bf4 {[%clk 0:03:03.7]} 7... Bg7 {[%clk 0:02:53]} 8. Qa4+ {[%clk 0:03:04.2]} 8...
Bd7 {[%clk 0:02:52.1]} 9. Qb3 {[%clk 0:03:05]} 9... b5 {[%clk 0:02:53]} 10. Bxd6
{[%clk 0:03:05.2]} 10... Qb6 {[%clk 0:02:19.2]} 11. Be5 {[%clk 0:03:04.9]} 11...
c4 {[%clk 0:02:20.1]} 12. Qd1 {[%clk 0:03:05.6]} 12... b4 {[%clk 0:02:21.2]} 13.
Na4 {[%clk 0:02:38.1]} 13... Qa5 {[%clk 0:02:13.5]} 14. b3 {[%clk 0:02:17.9]}
14... Bxa4 {[%clk 0:02:06]} 15. bxa4 {[%clk 0:02:18.6]} 15... Nbd7 {[%clk
0:02:07]} 16. Bd4 {[%clk 0:02:09.1]} 16... O-O {[%clk 0:01:49.5]} 17. e3 {[%clk
0:02:10]} 17... b3+ {[%clk 0:01:08.1]} 18. Qd2 {[%clk 0:02:08.1]} 18... Qxa4
{[%clk 0:01:02.4]} 19. Qb2 {[%clk 0:01:59.3]} 19... Qa5+ {[%clk 0:00:54.4]} 20.
Bc3 {[%clk 0:01:34.5]} 20... Nxd5 {[%clk 0:00:35.6]} 21. Bxa5 {[%clk 0:01:31.4]}
21... Bxb2 {[%clk 0:00:36.5]} 22. Rd1 {[%clk 0:01:31.9]} 22... Bc3+ {[%clk
0:00:21.2]} 23. Bxc3 {[%clk 0:01:19.3]} 23... Nxc3 {[%clk 0:00:21.9]} 24. Bxc4
{[%clk 0:01:16]} 24... Nxd1 {[%clk 0:00:22.3]} 25. Kxd1 {[%clk 0:01:17]} 25...
b2 {[%clk 0:00:17.6]} 26. Ke2 {[%clk 0:01:15.3]} 26... Rab8 {[%clk 0:00:17.3]}
27. Rb1 {[%clk 0:01:11.3]} 27... Rfc8 {[%clk 0:00:18]} 28. Nd2 {[%clk
0:01:10.5]} 28... a5 {[%clk 0:00:18.4]} 29. a4 {[%clk 0:01:06.5]} 29... Rb4
{[%clk 0:00:18.8]} 30. Bb3 {[%clk 0:00:50.8]} 30... Rcb8 {[%clk 0:00:17.8]} 31.
Bc2 {[%clk 0:00:48.5]} 31... Nc5 {[%clk 0:00:18.5]} 0-1

[Event "*** Titled Tuesday Blitz"]
[Site "Chess.com"]
[Date "2018.10.02"]
[Round "4"]
[White "Maikrosoft63"]
[Black "dretch"]
[Result "0-1"]
[WhiteElo "2553"]
[BlackElo "2782"]
[TimeControl "180+2"]
[EndTime "13:47:44 PDT"]
[Termination "dretch won by resignation"]

1. e4 {[%clk 0:03:01.8]} 1... e6 {[%clk 0:02:52.2]} 2. d4 {[%clk 0:03:02.7]}
2... d5 {[%clk 0:02:52.6]} 3. Nd2 {[%clk 0:03:03.8]} 3... c5 {[%clk 0:02:52.2]}
4. Ngf3 {[%clk 0:03:04.4]} 4... cxd4 {[%clk 0:02:52.9]} 5. exd5 {[%clk
0:03:04.5]} 5... Qxd5 {[%clk 0:02:53.3]} 6. Bc4 {[%clk 0:03:05.1]} 6... Qd6
{[%clk 0:02:54.1]} 7. O-O {[%clk 0:03:03.5]} 7... Nf6 {[%clk 0:02:54.3]} 8. Nb3
{[%clk 0:03:04.3]} 8... Be7 {[%clk 0:02:54]} 9. Nbxd4 {[%clk 0:03:04.1]} 9... a6
{[%clk 0:02:51.5]} 10. Qe2 {[%clk 0:02:58.9]} 10... O-O {[%clk 0:02:51.7]} 11.
Bg5 {[%clk 0:02:54]} 11... b5 {[%clk 0:02:47.7]} 12. Bd3 {[%clk 0:02:53.1]}
12... Bb7 {[%clk 0:02:48.8]} 13. Rad1 {[%clk 0:02:54]} 13... Nbd7 {[%clk
0:02:43]} 14. Nxb5 {[%clk 0:02:44.2]} 14... axb5 {[%clk 0:02:43.6]} 15. Bxh7+
{[%clk 0:02:45]} 15... Nxh7 {[%clk 0:02:38.2]} 16. Rxd6 {[%clk 0:02:45.8]} 16...
Bxd6 {[%clk 0:02:38.9]} 17. Be3 {[%clk 0:02:10.8]} 17... Rfd8 {[%clk 0:02:24.5]}
18. Rd1 {[%clk 0:02:06]} 18... Bf8 {[%clk 0:02:05.8]} 19. Qxb5 {[%clk 0:02:05]}
19... Ne5 {[%clk 0:02:05.9]} 20. Rxd8 {[%clk 0:01:24.3]} 20... Rxd8 {[%clk
0:02:07.8]} 21. h3 {[%clk 0:01:20.1]} 21... Nxf3+ {[%clk 0:02:03.3]} 22. gxf3
{[%clk 0:01:21.2]} 22... Bxf3 {[%clk 0:02:05.2]} 23. Bc5 {[%clk 0:00:51.5]}
23... Rd1+ {[%clk 0:01:56.6]} 24. Kh2 {[%clk 0:00:51.9]} 24... Rd5 {[%clk
0:01:57.7]} 25. Qb3 {[%clk 0:00:50.8]} 25... Rxc5 {[%clk 0:01:55.9]} 26. Qxf3
{[%clk 0:00:50.6]} 26... Rxc2 {[%clk 0:01:56.8]} 27. Qb3 {[%clk 0:00:46]} 27...
Rxf2+ {[%clk 0:01:56.6]} 28. Kg3 {[%clk 0:00:46.3]} 28... Rd2 {[%clk 0:01:55.7]}
29. a4 {[%clk 0:00:40.5]} 29... Bd6+ {[%clk 0:01:50.2]} 30. Kf3 {[%clk
0:00:40.3]} 30... Ng5+ {[%clk 0:01:50.5]} 31. Ke3 {[%clk 0:00:39.9]} 31... Rd5
{[%clk 0:01:47.9]} 32. h4 {[%clk 0:00:35.2]} 32... Nh3 {[%clk 0:01:38.6]} 33.
Qb7 {[%clk 0:00:24.1]} 33... Nf4 {[%clk 0:01:35.5]} 34. b4 {[%clk 0:00:16.5]}
34... Rd3+ {[%clk 0:01:33.7]} 35. Kf2 {[%clk 0:00:17.9]} 35... Be5 {[%clk
0:01:18.3]} 36. Qc8+ {[%clk 0:00:14.9]} 36... Kh7 {[%clk 0:01:18.6]} 37. Qc2
{[%clk 0:00:15.8]} 37... Bd4+ {[%clk 0:01:18.7]} 38. Ke1 {[%clk 0:00:16.1]}
38... Bc3+ {[%clk 0:01:18.2]} 39. Kf1 {[%clk 0:00:17.1]} 39... Bxb4 {[%clk
0:01:17.5]} 40. Qc4 {[%clk 0:00:13.8]} 40... Bd2 {[%clk 0:01:11]} 41. h5 {[%clk
0:00:12.5]} 41... Be3 {[%clk 0:01:10]} 42. Qe4+ {[%clk 0:00:11.5]} 42... f5
{[%clk 0:01:10.5]} 43. Qf3 {[%clk 0:00:12]} 43... Ra3 {[%clk 0:01:09.6]} 44. Qd1
{[%clk 0:00:11.3]} 44... Ra2 {[%clk 0:01:08]} 45. Qd7 {[%clk 0:00:11.2]} 45...
Ra1+ {[%clk 0:01:08.2]} 0-1

[Event "*** Titled Tuesday Blitz"]
[Site "Chess.com"]
[Date "2018.10.02"]
[Round "4"]
[White "BasilSmash"]
[Black "Vuk2000"]
[Result "1-0"]
[WhiteElo "2401"]
[BlackElo "2689"]
[TimeControl "180+2"]
[EndTime "13:47:59 PDT"]
[Termination "BasilSmash won by resignation"]

1. d4 {[%clk 0:03:01.9]} 1... Nf6 {[%clk 0:03:00.8]} 2. Bf4 {[%clk 0:03:02]}
2... e6 {[%clk 0:03:01.8]} 3. e3 {[%clk 0:03:02.5]} 3... d5 {[%clk 0:03:03.3]}
4. Nf3 {[%clk 0:03:03.4]} 4... Bd6 {[%clk 0:03:04.6]} 5. Bg3 {[%clk 0:03:04.6]}
5... O-O {[%clk 0:03:05.2]} 6. Nbd2 {[%clk 0:03:05.7]} 6... c5 {[%clk
0:03:06.6]} 7. c3 {[%clk 0:03:06.5]} 7... Nc6 {[%clk 0:03:07.9]} 8. Bd3 {[%clk
0:03:07.5]} 8... Qe7 {[%clk 0:03:09.3]} 9. Ne5 {[%clk 0:03:05.7]} 9... Bxe5
{[%clk 0:03:04.4]} 10. dxe5 {[%clk 0:03:05.8]} 10... Nd7 {[%clk 0:03:05.6]} 11.
Nf3 {[%clk 0:02:45.2]} 11... f6 {[%clk 0:03:01.9]} 12. exf6 {[%clk 0:02:07.9]}
12... Nxf6 {[%clk 0:03:00.3]} 13. Ne5 {[%clk 0:02:02.7]} 13... Nxe5 {[%clk
0:02:59.4]} 14. Bxe5 {[%clk 0:02:04.6]} 14... Nd7 {[%clk 0:02:59.4]} 15. Bg3
{[%clk 0:02:03]} 15... e5 {[%clk 0:02:47.2]} 16. e4 {[%clk 0:02:02.7]} 16... d4
{[%clk 0:02:44.8]} 17. cxd4 {[%clk 0:02:02.8]} 17... cxd4 {[%clk 0:02:42.2]} 18.
O-O {[%clk 0:02:03.4]} 18... Nf6 {[%clk 0:02:31.9]} 19. Rc1 {[%clk 0:01:50.9]}
19... Bg4 {[%clk 0:02:19.5]} 20. Qa4 {[%clk 0:01:46.7]} 20... a6 {[%clk
0:02:12.8]} 21. Qa5 {[%clk 0:01:46.1]} 21... Nd7 {[%clk 0:01:47.8]} 22. Rc7
{[%clk 0:01:39]} 22... Rab8 {[%clk 0:01:36.2]} 23. Rfc1 {[%clk 0:01:32.1]} 23...
Qd6 {[%clk 0:01:25.4]} 24. Qd5+ {[%clk 0:01:02.5]} 24... Qxd5 {[%clk 0:01:23]}
25. exd5 {[%clk 0:01:04.4]} 25... Rf7 {[%clk 0:00:53]} 26. f3 {[%clk 0:01:00.1]}
26... Bh5 {[%clk 0:00:54]} 27. d6 {[%clk 0:00:55.1]} 27... b5 {[%clk 0:00:36.7]}
28. Be4 {[%clk 0:00:43.9]} 28... Nf6 {[%clk 0:00:30.2]} 29. Bxe5 {[%clk
0:00:28.2]} 29... Nxe4 {[%clk 0:00:30.8]} 30. fxe4 {[%clk 0:00:30.1]} 30... Rd8
{[%clk 0:00:08.6]} 31. Rc8 {[%clk 0:00:24.9]} 31... Rd7 {[%clk 0:00:08.6]} 32.
Kf2 {[%clk 0:00:20.5]} 32... d3 {[%clk 0:00:09.3]} 33. Ke3 {[%clk 0:00:20.9]}
33... Be2 {[%clk 0:00:05.5]} 34. R1c7 {[%clk 0:00:20.9]} 34... Rxc8 {[%clk
0:00:05.2]} 35. Rxd7 {[%clk 0:00:18.8]} 35... Rc2 {[%clk 0:00:03]} 36. Rxg7+
{[%clk 0:00:17.9]} 36... Kf8 {[%clk 0:00:04.5]} 37. d7 {[%clk 0:00:17.7]} 1-0

[Event "*** Titled Tuesday Blitz"]
[Site "Chess.com"]
[Date "2018.10.02"]
[Round "4"]
[White "pKiLz5Rn9b"]
[Black "biostatistician"]
[Result "1-0"]
[WhiteElo "2793"]
[BlackElo "2568"]
[TimeControl "180+2"]
[EndTime "13:48:24 PDT"]
[Termination "pKiLz5Rn9b won by checkmate"]

1. Nf3 {[%clk 0:03:01.9]} 1... Nf6 {[%clk 0:03:00.6]} 2. b3 {[%clk 0:03:03.1]}
2... g6 {[%clk 0:03:02.5]} 3. Bb2 {[%clk 0:03:03.6]} 3... Bg7 {[%clk 0:03:04.4]}
4. g3 {[%clk 0:03:05.2]} 4... b6 {[%clk 0:03:04.8]} 5. Bg2 {[%clk 0:03:06.4]}
5... Bb7 {[%clk 0:03:06.3]} 6. c4 {[%clk 0:03:08.1]} 6... O-O {[%clk 0:03:07.5]}
7. O-O {[%clk 0:03:09.7]} 7... c5 {[%clk 0:03:09.2]} 8. Nc3 {[%clk 0:03:10.7]}
8... Nc6 {[%clk 0:03:10.7]} 9. d4 {[%clk 0:03:11.3]} 9... Nxd4 {[%clk
0:03:04.9]} 10. Nxd4 {[%clk 0:03:11.8]} 10... Bxg2 {[%clk 0:03:06.8]} 11. Kxg2
{[%clk 0:03:13.6]} 11... cxd4 {[%clk 0:03:08]} 12. Qxd4 {[%clk 0:03:15.5]} 12...
d6 {[%clk 0:02:54.1]} 13. Rfd1 {[%clk 0:03:16.3]} 13... Qc7 {[%clk 0:02:50.4]}
14. Rac1 {[%clk 0:03:17.2]} 14... Qc5 {[%clk 0:02:51]} 15. Qd2 {[%clk
0:02:54.2]} 15... Rac8 {[%clk 0:02:44.6]} 16. e4 {[%clk 0:02:50.4]} 16... Qc6
{[%clk 0:02:41.7]} 17. f3 {[%clk 0:02:51.5]} 17... Qb7 {[%clk 0:02:41.2]} 18. a4
{[%clk 0:02:49.3]} 18... Rc5 {[%clk 0:02:41.2]} 19. Ba3 {[%clk 0:02:47.5]} 19...
Rcc8 {[%clk 0:02:38.6]} 20. Qe2 {[%clk 0:02:47.2]} 20... Rfd8 {[%clk 0:02:35.2]}
21. Bb2 {[%clk 0:02:45.1]} 21... Rc6 {[%clk 0:02:34]} 22. g4 {[%clk 0:02:42.8]}
22... Rc5 {[%clk 0:02:30.4]} 23. h4 {[%clk 0:02:42.3]} 23... e6 {[%clk
0:02:20.6]} 24. Ba3 {[%clk 0:02:30.7]} 24... Rc6 {[%clk 0:02:19.9]} 25. e5
{[%clk 0:02:06.7]} 25... Nxg4 {[%clk 0:00:55.6]} 26. fxg4 {[%clk 0:02:06.6]}
26... Rxc4+ {[%clk 0:00:57]} 27. Qf3 {[%clk 0:01:50]} 27... Rxg4+ {[%clk
0:00:57.3]} 28. Kf2 {[%clk 0:01:51.7]} 28... Qxf3+ {[%clk 0:00:52.6]} 29. Kxf3
{[%clk 0:01:53.6]} 29... Rxh4 {[%clk 0:00:54.2]} 30. Bxd6 {[%clk 0:01:55.1]}
30... Bh6 {[%clk 0:00:34]} 31. Be7 {[%clk 0:01:41.5]} 31... Rf4+ {[%clk
0:00:18.6]} 32. Kg3 {[%clk 0:01:35.4]} 32... Re8 {[%clk 0:00:18.1]} 33. Bd6
{[%clk 0:01:00.8]} 33... Rf5 {[%clk 0:00:14.5]} 34. Ne4 {[%clk 0:00:52.6]} 34...
Bxc1 {[%clk 0:00:13.8]} 35. Rxc1 {[%clk 0:00:54.5]} 35... Rd8 {[%clk 0:00:12.7]}
36. Rc7 {[%clk 0:00:53.6]} 36... a5 {[%clk 0:00:13.6]} 37. Rb7 {[%clk
0:00:51.9]} 37... Rc8 {[%clk 0:00:13.1]} 38. Rxb6 {[%clk 0:00:48]} 38... h5
{[%clk 0:00:13.8]} 39. b4 {[%clk 0:00:42.2]} 39... axb4 {[%clk 0:00:14.3]} 40.
Rxb4 {[%clk 0:00:44.1]} 40... Rc1 {[%clk 0:00:15.1]} 41. Rb8+ {[%clk 0:00:37.3]}
41... Kh7 {[%clk 0:00:15.8]} 42. Nf6+ {[%clk 0:00:33.4]} 42... Kh6 {[%clk
0:00:16.8]} 43. Rh8+ {[%clk 0:00:30.9]} 43... Kg7 {[%clk 0:00:07]} 44. Rh7#
{[%clk 0:00:30.8]} 1-0

[Event "*** Titled Tuesday Blitz"]
[Site "Chess.com"]
[Date "2018.10.02"]
[Round "4"]
[White "RichardABates"]
[Black "kasparik_garik"]
[Result "0-1"]
[WhiteElo "2354"]
[BlackElo "2551"]
[TimeControl "180+2"]
[EndTime "13:48:37 PDT"]
[Termination "kasparik_garik won by resignation"]

1. d4 {[%clk 0:03:01.9]} 1... Nf6 {[%clk 0:02:59.2]} 2. Nf3 {[%clk 0:03:01.8]}
2... g6 {[%clk 0:02:59.7]} 3. g3 {[%clk 0:03:02.6]} 3... Bg7 {[%clk 0:03:01.6]}
4. Bg2 {[%clk 0:03:03.4]} 4... O-O {[%clk 0:03:03.4]} 5. O-O {[%clk 0:03:03.9]}
5... d6 {[%clk 0:03:05.3]} 6. c4 {[%clk 0:03:04.1]} 6... Nc6 {[%clk 0:03:06.2]}
7. Nc3 {[%clk 0:03:04.3]} 7... Bf5 {[%clk 0:03:06.8]} 8. h3 {[%clk 0:02:50.1]}
8... Ne4 {[%clk 0:03:06.8]} 9. Nd5 {[%clk 0:02:48.3]} 9... Bd7 {[%clk
0:03:07.6]} 10. Ng5 {[%clk 0:02:40.9]} 10... Nxg5 {[%clk 0:03:08]} 11. Bxg5
{[%clk 0:02:40.2]} 11... h6 {[%clk 0:03:08.5]} 12. Be3 {[%clk 0:02:39.6]} 12...
e5 {[%clk 0:03:01.1]} 13. dxe5 {[%clk 0:02:38.7]} 13... dxe5 {[%clk 0:03:01.8]}
14. Qd2 {[%clk 0:02:36]} 14... Kh7 {[%clk 0:03:02.4]} 15. Rfd1 {[%clk
0:02:31.6]} 15... Be6 {[%clk 0:03:03.3]} 16. Bc5 {[%clk 0:02:27.9]} 16... Re8
{[%clk 0:03:02.2]} 17. e3 {[%clk 0:02:22.1]} 17... f5 {[%clk 0:03:02.9]} 18. Ba3
{[%clk 0:02:14]} 18... e4 {[%clk 0:03:01.6]} 19. Rac1 {[%clk 0:02:08.4]} 19...
Ne5 {[%clk 0:02:58.6]} 20. Nf4 {[%clk 0:01:52.3]} 20... Qxd2 {[%clk 0:02:52.5]}
21. Rxd2 {[%clk 0:01:51.1]} 21... Nxc4 {[%clk 0:02:13.5]} 22. Nxe6 {[%clk
0:01:44.3]} 22... Nxd2 {[%clk 0:02:13]} 23. Nxg7 {[%clk 0:01:32.7]} 23... Kxg7
{[%clk 0:02:10.5]} 24. Rxc7+ {[%clk 0:01:32.3]} 24... Kg8 {[%clk 0:02:11.5]} 25.
b3 {[%clk 0:01:17.6]} 25... Rac8 {[%clk 0:01:51.7]} 26. Rxb7 {[%clk 0:01:16.4]}
26... Rc2 {[%clk 0:01:52.3]} 27. g4 {[%clk 0:01:05.4]} 27... fxg4 {[%clk
0:01:36.7]} 28. hxg4 {[%clk 0:01:04.3]} 28... Rxa2 {[%clk 0:01:37.5]} 29. Bb4
{[%clk 0:00:59.1]} 29... Nf3+ {[%clk 0:01:38]} 30. Bxf3 {[%clk 0:00:50.9]} 30...
exf3 {[%clk 0:01:38.9]} 31. Bc3 {[%clk 0:00:52]} 31... Re6 {[%clk 0:01:25.2]}
32. Bd4 {[%clk 0:00:48.2]} 32... a6 {[%clk 0:01:25.3]} 33. Rg7+ {[%clk
0:00:38.3]} 33... Kf8 {[%clk 0:01:25.5]} 34. Ra7 {[%clk 0:00:39.7]} 34... g5
{[%clk 0:01:19.9]} 35. Kh2 {[%clk 0:00:38.2]} 35... Rxf2+ {[%clk 0:01:14.3]} 36.
Kg3 {[%clk 0:00:38.4]} 36... Rf1 {[%clk 0:01:15.5]} 37. Ra8+ {[%clk 0:00:30.5]}
37... Ke7 {[%clk 0:01:10.6]} 38. Ra7+ {[%clk 0:00:30.1]} 38... Ke8 {[%clk
0:01:11.5]} 39. Ra8+ {[%clk 0:00:30.4]} 39... Kd7 {[%clk 0:01:12.4]} 40. Ra7+
{[%clk 0:00:30.9]} 40... Kc8 {[%clk 0:01:11.7]} 41. Ra8+ {[%clk 0:00:31.3]}
41... Kb7 {[%clk 0:01:12.8]} 42. Ra7+ {[%clk 0:00:32.2]} 42... Kb8 {[%clk
0:01:13.8]} 43. Rf7 {[%clk 0:00:32.3]} 43... Rc6 {[%clk 0:01:10.4]} 44. b4
{[%clk 0:00:26.6]} 44... Rc2 {[%clk 0:01:07.6]} 45. Rxf3 {[%clk 0:00:19.1]}
45... Rxf3+ {[%clk 0:01:08.1]} 46. Kxf3 {[%clk 0:00:19.3]} 46... Rc4 {[%clk
0:01:09.9]} 47. Ke4 {[%clk 0:00:19.4]} 47... Rxb4 {[%clk 0:01:09.2]} 48. Kf5
{[%clk 0:00:20.5]} 48... a5 {[%clk 0:01:04.2]} 49. Kg6 {[%clk 0:00:20.5]} 49...
a4 {[%clk 0:01:05.3]} 50. Be5+ {[%clk 0:00:20.8]} 50... Kc8 {[%clk 0:01:00]} 51.
Kxh6 {[%clk 0:00:22.7]} 51... Rb5 {[%clk 0:01:01]} 52. Bd4 {[%clk 0:00:22.8]}
52... Kd7 {[%clk 0:01:01.8]} 53. e4 {[%clk 0:00:21.5]} 53... Ke6 {[%clk
0:01:01.7]} 54. e5 {[%clk 0:00:21.7]} 54... Rxe5 {[%clk 0:01:01.5]} 55. Bxe5
{[%clk 0:00:20.7]} 55... Kxe5 {[%clk 0:01:02.3]} 0-1